Cogmind - Beta 16.1 *** ADVENTURER MODE // 2026.02.12 @ 21:09:50 Player: Mbreton Result: Self-destructed Performance ------------- Evolutions (3) 1500 Regions Visited (7) 1400 Robots Destroyed (75) 375 Value Destroyed (2856) 2856 Prototype IDs (2) 40 Alien Tech Used (0) 0 Bonus (1518) 1518 TOTAL SCORE: 7689 Bonus ------- High Alert Combat Kills 93 Follower Combat Kills 225 Entered Garrisons 200 Used RIF Installer 1000 Cogmind --------- Core Integrity 599/700 Matter 115/300 Energy 150/150 System Corruption 4% Temperature Cool (0) Movement Treading (160) Location -7/Factory Parts ------- > --- POWER (1) -------- Micro Nuclear Core > --- PROPULSION (4) --- Improved Treads Medium Treads Medium Treads Medium Treads > --- UTILITY (5) ------ Improved Heat Sink Large Storage Unit Advanced Visual Processing Unit Improved Medium Armor Plating Relay Coupler [Sentry] (9) > --- WEAPON (3) ------- Beam Rifle Gauss Cannon > --- INVENTORY (15) --- Advanced Visual Processing Unit Advanced ECM Suite Hardened Medium Armor Plating Improved Light Armor Plating Hacking Suite System Shield Relay Coupler [NC] (34) Relay Coupler [NC] (37) Relay Coupler [Demolisher] (25) Relay Coupler [Specialist] (23) Gauss Cannon Heavy Missile Launcher Remote Datajack Katana Peak State ------------ > --- POWER ------------ Micro Nuclear Core > --- PROPULSION ------- Improved Treads Medium Treads Medium Treads Medium Treads > --- UTILITY ---------- Large Storage Unit Advanced Visual Processing Unit Hardened Medium Armor Plating Improved Medium Armor Plating Relay Coupler [Sentry] > --- WEAPON ----------- Gauss Cannon Gauss Cannon Remote Datajack > --- INVENTORY -------- Improved Treads Improved Heat Sink Advanced Visual Processing Unit Advanced ECM Suite Improved Light Armor Plating Hacking Suite System Shield Relay Coupler [NC] Relay Coupler [NC] Relay Coupler [Demolisher] Relay Coupler [Specialist] Beam Rifle Gauss Cannon Heavy Missile Launcher Katana [Rating: 49] Favorites ----------- Power Light Nuclear Core Engine Ion Engine Power Core Light Nuclear Core Propulsion Light Treads Treads Light Treads Leg Aluminum Leg Wheel Compact Wheel Flight Unit Improved Flight Unit Utility Advanced Visual Processing Unit Device Improved Heat Sink Storage Large Storage Unit Processor Advanced Visual Processing Unit Hackware Relay Coupler [Sentry] Protection Hardened Medium Armor Plating Weapon Gauss Cannon Energy Gun Beam Rifle Ballistic Gun Light Assault Rifle Ballistic Cannon Gauss Cannon Launcher Heavy Missile Launcher Special Weapon Remote Datajack Slashing Weapon Katana Special Melee Weapon Datajack Build | -11 -10 -10 -10 -8 -7 -7 -7 ------- Run | Yrd Mat Min Sub Mat Fac Gar Fac Slots Evolved 6 | . . . . 4 2 . . Power . | . . . . . . . . Propulsion 2 | . . . . 2 . . . Utility 3 | . . . . 1 2 . . Weapon 1 | . . . . 1 . . . Parts Attached 49 | 7 1 2 2 27 3 3 4 Power 5 | 1 . . 1 2 . . 1 Engine 3 | 1 . . 1 1 . . . Core 2 | . . . . 1 . . 1 Reactor . | . . . . . . . . Propulsion 18 | 2 . 1 . 12 3 . . Treads 12 | . . . . 9 3 . . Leg 3 | 2 . 1 . . . . . Wheel 2 | . . . . 2 . . . Hover . | . . . . . . . . Flight 1 | . . . . 1 . . . Utility 13 | 1 1 . . 8 . 1 2 Device 2 | . . . . 2 . . . Storage 3 | 1 1 . . 1 . . . Processor 2 | . . . . 2 . . . Hackware 1 | . . . . . . . 1 Protection 5 | . . . . 3 . 1 1 Artifact . | . . . . . . . . Weapon 13 | 3 . 1 1 5 . 2 1 Energy Gun 3 | 2 . . . 1 . . . Energy Cannon . | . . . . . . . . Ballistic Gun 3 | 1 . 1 1 . . . . Ballistic Cannon 3 | . . . . 2 . 1 . Launcher 1 | . . . . . . 1 . Special Weapon 1 | . . . . . . . 1 Impact Weapon . | . . . . . . . . Slashing Weapon 1 | . . . . 1 . . . Piercing Weapon . | . . . . . . . . Special Melee Weapon 1 | . . . . 1 . . . Unidentified Prototypes 1 | . . . . 1 . . . Parts Lost 12 | . . 1 1 7 . 1 2 Power 2 | . . . . 2 . . . Propulsion 4 | . . 1 . 2 . . 1 Utility 1 | . . . . . . 1 . Weapon 5 | . . . 1 3 . . 1 Highest Loss Streak 6 | . . 1 1 6 . 1 1 To Critical Strikes . | . . . . . . . . Average Backups 11 | . 2 5 7 11 13 14 14 Power . | . . . . . . 1 . Propulsion 1 | . . 1 2 1 2 1 . Utility 6 | . . 2 3 6 7 7 9 Weapon 2 | . 1 1 1 2 3 3 3 Tool/Special . | . . . . . . . . Unused Backups 13 | . . 1 . 2 1 1 8 Power . | . . . . . . . . Propulsion 1 | . . 1 . . . . . Utility 9 | . . . . 1 . . 8 Weapon 2 | . . . . 1 . 1 . Tool/Special 1 | . . . . . 1 . . Average Slot Usage (%) 91 | . 85 84 84 92 92 95 99 Engine 4 | . 14 14 14 . . . . Core 5 | . . . . 7 7 7 7 Treads 20 | . . . . 27 30 29 29 Leg 8 | . 28 27 28 2 . . . Wheel 1 | . . . . 2 . . . Device 3 | . . . . 3 7 7 4 Storage 9 | . 14 14 14 9 7 7 7 Processor 4 | . . . . 6 7 7 7 Protection 5 | . . . . 5 7 10 12 Energy Gun 9 | . 14 14 13 8 7 7 6 Ballistic Gun 4 | . 14 13 14 1 . . . Ballistic Cannon 10 | . . . . 15 15 13 14 Peak Build Rating 49 | 6 7 6 9 31 42 45 49 Average Rating 25 | 4 6 5 7 24 35 42 46 On Entrance 17 | . 6 6 6 7 31 42 44 Avg Prop Armor Cover (%) 1 | . . . . 1 . . . Naked Turns . | . . . . . . . . Heaviest Build 61 | 13 18 18 20 50 61 61 59 Greatest Support 107 | 20 20 20 20 92 107 107 107 Greatest Overweight (x) 1 | . . . . 1 . . . Average Overweight (x) . | . . . . . . . . Largest Inventory Capacity 15 | 8 10 10 10 15 15 15 15 Average Capacity 12 | 7 8 10 10 13 15 15 15 Most Carried 15 | 3 4 6 10 15 15 15 15 Average Carried 11 | . 2 5 8 12 13 14 14 Final Capacity 15 | 8 10 10 10 15 15 15 15 Final Carried 15 | 1 4 6 10 15 15 15 14 Class Distribution -------------------- 34% | Mutant 21% | Scavenger-Tank 20% | Bothacker-Tank 13% | Tank 7% | Skirmisher Dominant Class ---------------- Mutant | -10/Materials Mutant | -10/Mines Mutant | -10/Subcaves Scavenger-Tank | -8/Materials Tank | -7/Factory Tank | -7/Garrison Bothacker-Tank | -7/Factory Resources | -11 -10 -10 -10 -8 -7 -7 -7 ----------- Run | Yrd Mat Min Sub Mat Fac Gar Fac Matter Collected 1877 | 200 37 102 98 502 180 452 306 Remotely . | . . . . . . . . Salvage Created 1906 | . 37 124 84 764 167 504 226 Parts 118 | . 4 6 7 62 3 29 7 Haulers Intercepted 1 | . . . . 1 . . . Recyclers Shooed . | . . . . . . . . Parts Field Recycled . | . . . . . . . . Retrieved Matter . | . . . . . . . . Parts Self-Destructed 4 | . . . 4 . . . . Prevented . | . . . . . . . . Parts Restored . | . . . . . . . . Kills | -11 -10 -10 -10 -8 -7 -7 -7 ------- Run | Yrd Mat Min Sub Mat Fac Gar Fac Combat Hostiles Destroyed 69 | . 1 5 2 27 2 24 8 Melee 4 | . . . . 4 . . . Guns 24 | . 1 3 2 8 1 5 4 Cannons 29 | . . . . 15 . 10 4 AOE 9 | . . . . . . 9 . Classes Destroyed 16 | . 1 2 1 6 1 2 3 Worker 1 | . . . . . . . 1 Tunneler 1 | . . . . 1 . . . Hauler 1 | . . . . 1 . . . Recycler 1 | . . . . . 1 . . Operator 1 | . . . . 1 . . . Watcher 2 | . . . . 2 . . . Swarmer 26 | . . 2 . 13 . 11 . Cutter 4 | . . . . . . 4 . Grunt 18 | . 1 2 . 7 2 3 3 Brawler 1 | . . . . 1 . . . Duelist 1 | . . . . . . . 1 Sentry 11 | . . . . 6 . 4 1 Demolisher 1 | . . . . . . . 1 Programmer 4 | . . . . . . 2 2 Subdweller 2 | . . . 2 . . . . Assembled 1 | . . 1 . . . . . Best Kill Streak 12 | . 1 2 1 6 2 12 3 Combat Bots Only 12 | . 1 2 1 6 1 12 3 Max Kills in Single Turn 4 | . 1 1 1 2 1 4 2 Gunslinging . | . . . . . . . . Exploded 4 | . . . . . . 4 . Melee 1 | . . . . 1 . . . Uniques/NPCs Destroyed . | . . . . . . . . Combat | -11 -10 -10 -10 -8 -7 -7 -7 -------- Run | Yrd Mat Min Sub Mat Fac Gar Fac Hostile Shots Fired 483 | . 5 56 17 138 12 184 71 Missed 154 | . . 13 6 35 5 71 24 Hits 329 | . 5 43 11 103 7 113 47 Melee 7 | . . . . 1 . 6 . Projectile 322 | . 5 43 11 102 7 107 47 AOE 2 | . . . . . . 2 . Critical Strikes 7 | . . . 1 3 . 2 1 Damage Taken 3223 | . 41 376 223 975 109 1041 458 Core 548 | . . 68 86 293 44 38 19 Absorbed by Shields . | . . . . . . . . Ignored by Resistances 978 | . 13 117 63 291 32 323 139 Core Remaining (%) 61 | 100 . . 38 46 . . . Volleys Fired 214 | . 4 30 34 59 18 41 28 Largest 3 | . 2 2 2 3 3 3 3 Hottest 136 | . 70 70 70 136 136 136 136 Shots Fired 454 | . 8 47 62 154 22 97 64 Gun 266 | . 8 47 62 74 18 34 23 Cannon 180 | . . . . 80 4 59 37 Launcher 4 | . . . . . . 4 . Special 4 | . . . . . . . 4 Kinetic 271 | . 4 30 38 99 4 59 37 Thermal 175 | . 4 17 24 55 18 34 23 Explosive 4 | . . . . . . 4 . Electromagnetic . | . . . . . . . . Robot Hit Streak 22 | . 4 22 13 13 13 15 10 Robot Miss Streak 3 | . 1 3 1 3 1 2 2 Penetration Max 1 | . . . . 1 . 1 1 Secondary Targets 3 | . . 2 . 1 . . . Max Gunslinging Chain 1 | . . 1 . 1 . . . Shots Hit Robots 297 | . 5 30 32 113 20 56 41 Core Hits 125 | . 2 9 10 41 6 40 17 Critical Kills . | . . . . . . . . Critical Parts Destroyed 1 | . . . . 1 . . . Critical Strikes 24 | . . 2 . 11 2 4 5 Burn 7 | . . 2 . 2 1 1 1 Destroy 1 | . . . . 1 . . . Blast 15 | . . . . 7 1 3 4 Sever 1 | . . . . 1 . . . Melee Attacks 11 | . . . . 11 . . . Impact . | . . . . . . . . Slashing 11 | . . . . 11 . . . Piercing . | . . . . . . . . Sneak Attacks . | . . . . . . . . Combat Hostiles . | . . . . . . . . Follow-up Attacks . | . . . . . . . . Damage Inflicted 6386 | . 51 299 285 2448 345 2031 927 Guns 2070 | . 51 299 285 604 231 370 230 Cannons 3186 | . . . . 1504 114 871 697 Explosions 790 | . . . . . . 790 . Melee 340 | . . . . 340 . . . Ramming . | . . . . . . . . Kinetic 3637 | . 26 137 152 1640 114 871 697 Thermal 1619 | . 25 162 133 468 231 370 230 Explosive 790 | . . . . . . 790 . Electromagnetic . | . . . . . . . . Impact . | . . . . . . . . Slashing 340 | . . . . 340 . . . Piercing . | . . . . . . . . Highest Corruption 4 | . . . . 1 . 1 4 Average Corruption 1 | . . . . 1 . 1 2 Corruption Purged . | . . . . . . . . Corruption Blocked . | . . . . . . . . Effects 20 | . . . . 3 . 1 16 Message Errors 6 | . . . . . . . 6 Matter Fused 4 | . . . . 1 . . 3 Heat Flow Errors 3 | . . . . . . 1 2 Energy Discharges 1 | . . . . . . . 1 Parts Rejected 1 | . . . . 1 . . . Data Loss (minor) 1 | . . . . . . . 1 Data Loss (major) 2 | . . . . 1 . . 1 Misfires 2 | . . . . . . . 2 Overload Shots . | . . . . . . . . Overflow Damage 121 | . . . . 63 13 12 33 Projectiles 120 | . . . . 62 13 12 33 Explosions . | . . . . . . . . Melee 1 | . . . . 1 . . . Knockbacks 20 | . . . . 7 . 5 8 Impact . | . . . . . . . . Kinetic 17 | . . . . 6 . 4 7 Secondary 3 | . . . . 1 . 1 1 Self-Inflicted Damage 48 | . . . . . . 48 . Shots 1 | . . . . . . 1 . Rammed . | . . . . . . . . Targets Rammed . | . . . . . . . . Kicked . | . . . . . . . . Crushed . | . . . . . . . . Highest Temperature 449 | . 104 244 209 449 33 167 427 Average Temperature 113 | . 54 108 120 134 15 35 146 Received Heat Transfer 1296 | . 30 111 270 423 63 204 195 Effects 15 | . . 1 . 6 . . 8 Shutdowns 3 | . . . . 2 . . 1 Energy Bleed 4 | . . . . 3 . . 1 Interference 6 | . . 1 . . . . 5 Damage (minor) 2 | . . . . 1 . . 1 Siege Activations . | . . . . . . . . Martial Activations . | . . . . . . . . Shielding Activations . | . . . . . . . . Robots Disrupted . | . . . . . . . . Combat Hostiles . | . . . . . . . . Robots Corrupted . | . . . . . . . . Combat Hostiles . | . . . . . . . . Parts Fried . | . . . . . . . . Impact Corruptions 1 | . . . . 1 . . . Robots Melted 3 | . . 2 . . 1 . . Combat Hostiles 3 | . . 2 . . 1 . . Parts Melted 7 | . . 3 . 1 1 . 2 Heat Transferred 4584 | . 74 629 300 1287 666 999 629 Parts Sabotaged . | . . . . . . . . Parts Stolen . | . . . . . . . . Parts Stripped . | . . . . . . . . Power Chain Reactions . | . . . . . . . . Alert | -11 -10 -10 -10 -8 -7 -7 -7 ------- Run | Yrd Mat Min Sub Mat Fac Gar Fac Maximum Alert Level 2 | . . . . 1 . 2 1 Low Security (%) 76 | 100 100 100 . 90 100 29 56 Level 1 14 | . . . . 9 . 10 43 Level 2 9 | . . . . . . 59 . Level 3 . | . . . . . . . . Level 4 . | . . . . . . . . Level 5 . | . . . . . . . . High Security . | . . . . . . . . Max Security . | . . . . . . . . Peak Influence 677 | . 20 50 . 263 37 677 307 Initial 307 | . . . . . 22 . 307 Average 150 | . 2 17 . 93 9 427 200 Influence Increases 2059 | . 20 105 . 964 55 687 228 Destroy 0b10 Robot/C 1380 | . 20 80 . 600 40 480 160 Destroy 0b10 Robot/NC 40 | . . . . 30 5 . 5 Destroy Leader 236 | . . 10 . 146 10 20 50 Allied During Kill 6 | . . . . 6 . . . Successful Hack 4 | . . . . 4 . . . Disable Machine 36 | . . . . 27 . . 9 Anti-Garrison Action 100 | . . . . . . 100 . Destroy Structure 107 | . . . . 31 . 72 4 Partial Spotted 30 | . . . . 30 . . . Lose Combat Pursuer 120 | . . 15 . 90 . 15 . Influence Decreases 1934 | . 20 105 . 906 113 10 780 Entered New Map 406 | . . . . . 36 . 370 Time Decay 1398 | . 20 95 . 816 77 . 390 Lost Part 90 | . . 10 . 50 . 10 20 Lost Ally 40 | . . . . 40 . . . Squads Dispatched 6 | . . . . 2 1 . 3 Investigation 1 | . . . . . . . 1 Extermination 1 | . . . . . . . 1 Reinforcement 4 | . . . . 2 1 . 1 Assault . | . . . . . . . . Garrison . | . . . . . . . . Intercept . | . . . . . . . . Searches Triggered . | . . . . . . . . Construction Impeded 1 | . . . . . . . 1 Haulers Reinforced . | . . . . . . . . Active Scanning Responses . | . . . . . . . . Cargo Convoy Interrupts . | . . . . . . . . Stealth | -11 -10 -10 -10 -8 -7 -7 -7 --------- Run | Yrd Mat Min Sub Mat Fac Gar Fac Distress Signals 6 | . . 1 . 2 . . 3 Communications Jammed . | . . . . . . . . Distress Signals . | . . . . . . . . Times Spotted 110 | . 1 6 6 55 3 24 15 Peak Tracking Total 12 | . 1 3 2 5 1 12 3 Tactical Retreats 8 | . . 1 . 6 . 1 . Traps | -11 -10 -10 -10 -8 -7 -7 -7 ------- Run | Yrd Mat Min Sub Mat Fac Gar Fac Traps Triggered 6 | . . . . 4 1 1 . Indirectly . | . . . . . . . . Trap Hack Attempts . | . . . . . . . . Triggered . | . . . . . . . . Disarmed . | . . . . . . . . Reprogrammed . | . . . . . . . . Reused . | . . . . . . . . Traps Extracted . | . . . . . . . . Installed . | . . . . . . . . Triggered . | . . . . . . . . Machines | -11 -10 -10 -10 -8 -7 -7 -7 ---------- Run | Yrd Mat Min Sub Mat Fac Gar Fac Machines Disabled 7 | . . . . 3 . 3 1 Max in Single Turn 1 | . . . . 1 . 1 1 Garrison Relay 2 | . . . . . . 2 . Machines Repaired . | . . . . . . . . Machines Dismantled . | . . . . . . . . Machines Sabotaged . | . . . . . . . . Overloaded Fab Kills . | . . . . . . . . Hacking | -11 -10 -10 -10 -8 -7 -7 -7 --------- Run | Yrd Mat Min Sub Mat Fac Gar Fac Machines Accessed 11 | . 1 . . 5 1 2 2 Terminals 8 | . 1 . . 4 . 2 1 Fabricators 1 | . . . . . . . 1 Repair Stations . | . . . . . . . . Recycling Units . | . . . . . . . . Scanalyzers 1 | . . . . 1 . . . Garrison Access 1 | . . . . . 1 . . Total Hacks 27 | . 1 . . 19 1 2 4 Successful 15 | . 1 . . 11 1 2 . Failed 12 | . . . . 8 . . 4 Catastrophic 2 | . . . . . . . 2 Database Lockouts . | . . . . . . . . Manual . | . . . . . . . . Terminals 20 | . 1 . . 15 . 2 2 Fabricators 2 | . . . . . . . 2 Repair Stations . | . . . . . . . . Recycling Units . | . . . . . . . . Scanalyzers 4 | . . . . 4 . . . Garrison Access 1 | . . . . . 1 . . Terminal Hacks 10 | . 1 . . 7 . 2 . Record 1 | . 1 . . . . . . Branch Access Points 1 | . . . . 1 . . . Emergency Access Points 1 | . . . . . . 1 . Repair Station Index 1 | . . . . 1 . . . Recycling Unit Index 1 | . . . . 1 . . . Alert Level 1 | . . . . 1 . . . Locate Traps 1 | . . . . 1 . . . Hauler Manifests 1 | . . . . 1 . . . Zone Layout 1 | . . . . 1 . . . Patrol Navigation 1 | . . . . . . 1 . Fabricator Hacks . | . . . . . . . . Repair Station Hacks . | . . . . . . . . Recycling Unit Hacks . | . . . . . . . . Scanalyzer 4 | . . . . 4 . . . Insert Component 2 | . . . . 2 . . . Analyze 2 | . . . . 2 . . . Garrison Access Hacks 1 | . . . . . 1 . . Unlock Access 1 | . . . . . 1 . . Unauthorized Hacks . | . . . . . . . . Terminals . | . . . . . . . . Fabricators . | . . . . . . . . Repair Stations . | . . . . . . . . Recycling Units . | . . . . . . . . Scanalyzers . | . . . . . . . . Garrison Access . | . . . . . . . . Data Cores Recovered 2 | . . . . 2 . . . Used 2 | . . . . 2 . . . Hacking Detections 4 | . . . . 2 . . 2 Full Trace Events 1 | . . . . . . . 1 Feedback Events . | . . . . . . . . Feedback Blocked . | . . . . . . . . Robot Schematics Acquired . | . . . . . . . . Robots Built . | . . . . . . . . Authchips . | . . . . . . . . Time . | . . . . . . . . Total Robot Build Rating . | . . . . . . . . Part Schematics Acquired 2 | . . . . 2 . . . Parts Built . | . . . . . . . . Authchips . | . . . . . . . . Time . | . . . . . . . . Total Part Build Rating . | . . . . . . . . Part Studies Acquired . | . . . . . . . . Parts Repaired . | . . . . . . . . Time . | . . . . . . . . Parts Recycled . | . . . . . . . . Recycled Matter . | . . . . . . . . Retrieved Matter . | . . . . . . . . Retrieved Components . | . . . . . . . . Parts Scanalyzed 2 | . . . . 2 . . . Part Schematics Acquired 2 | . . . . 2 . . . Parts Damaged . | . . . . . . . . Bothacking | -11 -10 -10 -10 -8 -7 -7 -7 ------------ Run | Yrd Mat Min Sub Mat Fac Gar Fac Used RIF Installer 2 | . . . . . . 2 . Watcher Feeds 1 | . . . . . . 1 . Robots Hacked 2 | . . . . . . . 2 Non-combat . | . . . . . . . . Combat 2 | . . . . . . . 2 Robot Hacks Applied 4 | . . . . . . . 4 find_shortcuts 1 | . . . . . . . 1 find_garrison 1 | . . . . . . . 1 disable_weapons 1 | . . . . . . . 1 reboot_system 1 | . . . . . . . 1 Relay Couplers Released 9 | . . . . . . 9 . Machine Destruction 9 | . . . . . . 9 . Attached 1 | . . . . . . . 1 Fabnet Peak Effective % . | . . . . . . . . Robots Rewired . | . . . . . . . . Allies Hacked . | . . . . . . . . Hacks Repelled . | . . . . . . . . Allies | -11 -10 -10 -10 -8 -7 -7 -7 -------- Run | Yrd Mat Min Sub Mat Fac Gar Fac Total Allies 3 | . . 3 . . . . . Largest Group 3 | . . 3 3 2 . . . Highest-Rated Group 40 | . . 40 40 31 . . . Highest-Rated Ally 16 | . . 16 16 16 . . . Total Orders . | . . . . . . . . Ally Attacks 55 | . . . 37 18 . . . Total Damage 607 | . . . 419 188 . . . Kills 9 | . . . 5 4 . . . Allies Corrupted . | . . . . . . . . Allies Melted . | . . . . . . . . Intel | -11 -10 -10 -10 -8 -7 -7 -7 ------- Run | Yrd Mat Min Sub Mat Fac Gar Fac Active Infowar (turns) 3595 | . . . . 1874 328 679 714 Optics 3246 | . . . . 1525 328 679 714 Traps 349 | . . . . 349 . . . Robot Analysis Total . | . . . . . . . . Derelict Logs Recovered 1 | . . 1 . . . . . Drone Launches . | . . . . . . . . Drone Recoveries . | . . . . . . . . Exploration | -11 -10 -10 -10 -8 -7 -7 -7 ------------- Run | Yrd Mat Min Sub Mat Fac Gar Fac Turns Passed 5329 | 63 158 272 1057 1987 328 679 785 Spaces Moved 3105 | 44 115 160 790 1070 175 340 411 Core 5 | 5 . . . . . . . Treads 1810 | . . . . 884 175 340 411 Legs 1249 | 39 115 160 790 145 . . . Wheels 41 | . . . . 41 . . . Hover . | . . . . . . . . Flight . | . . . . . . . . Fastest Speed 50 | 50 120 120 120 100 160 160 160 Average Speed 143 | 112 120 120 120 152 160 160 160 Slowest Speed 240 | 120 120 120 120 240 160 160 160 Overloaded Moves . | . . . . . . . . Propulsion Burnouts . | . . . . . . . . Robots Hopped . | . . . . . . . . Potential Cave-ins . | . . . . . . . . Cave-ins Triggered . | . . . . . . . . Exploration Rate (%) 32 | 4 26 28 41 89 7 53 15 Regions Visited 7 Branch Regions 2 Pre-discovered Areas 1 | . . 1 . . . . . Known Exits Taken 1 | . . . . . 1 . . Unknown Exits Taken 5 | 1 1 1 1 1 . . . Scrap Searched 1 | . . 1 . . . . . Spaces Dug . | . . . . . . . . Terrain Destroyed 75 | . . . . 29 . 40 6 Melee . | . . . . . . . . Projectile 39 | . . . . 29 . 4 6 AOE 36 | . . . . . . 36 . Terrain Rammed . | . . . . . . . . Walls Destroyed . | . . . . . . . . Machines Disabled . | . . . . . . . . Actions | -11 -10 -10 -10 -8 -7 -7 -7 --------- Run | Yrd Mat Min Sub Mat Fac Gar Fac Total 3598 | 57 128 199 840 1287 205 394 488 Wait 129 | . 5 . 7 82 . . 35 Move 3099 | 43 114 159 789 1069 175 339 411 Hop . | . . . . . . . . Pick Up 52 | 7 3 5 4 21 4 6 2 Fast Attach 9 | . . . . 9 . . . Attach 30 | 6 1 2 1 14 1 3 2 Detach 4 | . 1 . . 3 . . . Swap 25 | 1 . 1 5 6 3 2 7 Drop 25 | . . 2 . 13 4 3 3 Fire 214 | . 4 30 34 59 18 41 28 Melee 11 | . . . . 11 . . . Ram . | . . . . . . . . Kick . | . . . . . . . . Crush . | . . . . . . . . Escape Stasis . | . . . . . . . . Rewire . | . . . . . . . . Trap . | . . . . . . . . Miscellaneous . | . . . . . . . . Route ------- -11/Scrapyard -10/Materials -10/Mines -10/Subcaves -8/Materials (discovered 4 exits: *Fac x2 / *Sto x2) -7/Factory -7/Garrison -7/Factory History --------- Turn | Location | Event 17 | -11/Scrapyard | Discovered new exit (range 16) 64 | -11/Scrapyard | Entered Materials 130 | -10/Materials | Discovered new exit (range 15) 222 | -10/Materials | Entered Mines 223 | -10/Mines | Assembled infested the area 239 | -10/Mines | Met a Derelict bent on vengeance 316 | -10/Mines | Build established: Mutant 373 | -10/Mines | Assisted by bots powering up and referring to "LRC-V3" 413 | -10/Mines | Learned location of Recycling (-8) 477 | -10/Mines | Discovered new exit (range 9) 494 | -10/Mines | Entered Subcaves 494 | -10/Subcaves | Accompanied by 3 allies 875 | -10/Subcaves | Shifting Twisted Machinery released Sub. Laser 1092 | -10/Subcaves | Shifting Twisted Machinery released Mak. Axe 1269 | -10/Subcaves | Shifting Twisted Machinery released Sub. Machine Gun 1270 | -10/Subcaves | Shifting Twisted Machinery released Shrapnel Trap 1470 | -10/Subcaves | Core integrity fell below 50% 1529 | -10/Subcaves | Discovered new exit (range 6) 1530 | -10/Subcaves | A swath of the cavern ceiling suddenly collapsed 1551 | -10/Subcaves | Entered Materials 1551 | -8/Materials | Accompanied by 2 allies 1551 | -8/Materials | Evolved 4 slots: Propulsion x2, Utility x1, Weapon x1 1825 | -8/Materials | Lost 6 parts (1p2n3w) 1945 | -8/Materials | Discovered new exit (range 16) 2169 | -8/Materials | Build established: Scavenger-Tank 2263 | -8/Materials | Discovered new exit (range 20) 2329 | -8/Materials | Core integrity fell below 50% 2453 | -8/Materials | Discovered new exit (range 19) 2784 | -8/Materials | Identified exit to Storage 3066 | -8/Materials | Discovered new exit (range 19) 3432 | -8/Materials | Build established: Skirmisher 3538 | -8/Materials | Entered Factory 3538 | -7/Factory | Evolved 2 slots: Utility x2 3866 | -7/Factory | Identified exit to Garrison 3866 | -7/Factory | Entered Garrison 3878 | -7/Garrison | Build established: Tank 3956 | -7/Garrison | Installed Relay Interface Framework 4061 | -7/Garrison | Triggered checkpoint 4063 | -7/Garrison | Triggered checkpoint 4104 | -7/Garrison | Destroyed 12 combat bots 4189 | -7/Garrison | Garrison Relay disabled 4212 | -7/Garrison | Garrison Relay disabled 4269 | -7/Garrison | Discovered new exit (range 11) 4292 | -7/Garrison | Triggered checkpoint 4370 | -7/Garrison | Expanded RIF knowledge: Watcher Feeds 4528 | -7/Garrison | Build established: Bothacker-Tank 4545 | -7/Garrison | Entered Factory 5330 | -7/Factory | Self-destructed Last Messages --------------- Dispatching Investigation squad. U-05 Engineer lays Concrete. R-06 Scavenger collects Structural Scanner. U-05 Engineer lays Concrete. R-06 Scavenger collects Welding Torch. U-05 Engineer lays Concrete. R-06 Scavenger collects Wheel. U-05 Engineer builds a Wall. R-06 Scavenger collects Terrain Scan Processor. U-05 Engineer builds a Wall. Garrison Access disabled. R-06 Scavenger collects Wheel. System corrupted: FCS attempts to trigger Beam Rifle. System corrupted: Beam Rifle misfires. ALERT: Construction progress impeded, dispatching reinforcements to local area. R-06 Scavenger collects Carbon-fiber Leg. Acquired 13 matter. Gauss Cannon destroyed. Map ----- +----------------------------------------------------+ | ?????????????????????????????????????????????????? | | ?????????????????????????????????????????????????? | | ?????????????????????????????????????????????????? | | ?????????????????????????????????????????????????? | | ?????????????????????????????????????????????????? | | ?????????????????????????????????????????????????? | | ?????????????????????????????????????????????????? | | ???????????????????##????????????????????????????? | | ????????????????? #T ##+##???????????????????????? | | ????????????????? ???????????????????????? | | ?????????????????? ???????????????????????? | | ?????????????????? ???????????????????????? | | ??????????????????? ???????????????????????? | | ??????????????????? ???????????????????????? | | ???????????????????# #?????#???##+???????????? | | ???????????????????# #???? #?? ????????????? | | ???????????????????# #???? #? ?????????????? | | ???????????????????# +??? # ??????????????? | | ???????????????????# #???/ # ???????????????? | | ???????????????????# #?? g ????????????????? | | #???#+#????????????#k #??] g#?????????????????? | | #???# #????????????# #?]]g #?????????????????? | | #???# #?????####+### #?]] #?????????????????? | | #???# #?????# # #?????????????????? | | #???# #?????# # #?????????????????? | | #???# #?????# @ #?????????????????? | | ##### ####??# # #?????????????????? | | + #??# ########+##+#???????????? | | # #??# ######+########" #???????????? | | # #### # ##%" #???????????? | | # ## ###?????????? | | + """""" ## ########+## | | # """ "" # | | # "" # | | # ## """ | | ########+#####"## # # %""F """ | | ??# # # ## ="" """ | | ??# % ### " " ## """ """ ## | | ??# """" """"=#?## " " + """ #? | | ??# """" """" #?## ""G"" ## """ #? | | ??# """" """" #??# ## """ #? | | ??# """" """" #??############### """ #+#? | | ??# ?"""" """" #????????????##### #??? | | ??#???""" """" #????????????????" """ ???? | | ????? #???????????????? """ +??? | | ????? #????????????????" """ #??? | | ??? #????????????????#!!! #??? | | ???? #????????????????"!! """ ???#??? | | ???#############????????????????"!! """ ?????? | | ???????????????????????????????? """ ? ????? | +----------------------------------------------------+ Best States ------------- Heat Dissipation 48 Energy Generation 15 Energy Capacity 250 Matter Stores 300 Matter Capacity 300 Sight Range 20 Terrain Scan Density 10 Armor Coverage 800 Resistance: KI 20 Resistance: TH 20 Resistance: EX 20 Resistance: EM 20 Resistance: I 20 Resistance: S 20 Resistance: P 20 Evasion (%) 55 Recoil Reduction 4 Offensive Hacking 10 Relay Coupler Types 1 Relay Coupler Value 22 Item Schematics ----------------- Imp. Light Armor Plating | -8/Materials | Scanalyzed Hvy. Particle Gun | -8/Materials | Scanalyzed Robot Schematics ------------------ None Fabricated ------------ Nothing Repaired ---------- Nothing Studied --------- None Alien Tech Used ----------------- None Achievements -------------- Ghost 'Em Mindtrick Challenges ------------ None Game ------ Seed PulsarImprovedLayer Manual? 0 Play Time 00:48:52 Cumulative 46.5 hours Start 2026.02.12 @ 10:18:01 End 2026.02.12 @ 21:09:50 Sessions 3 Manual Loads 0 Difficulty Adventurer Special Mode None Game No. 39 Rogue 0 Adventurer 39 Explorer 0 Win Type - Total 0 Types 0/0/0/0/0/0/0/0/0/0 Lore% 10 Gallery% 30 Achievement% 20 Wizard Run 0 Options --------- Layout 1 ASCII 0 Keyboard 0 Movement Mouse Keybinds 0 Fullscreen 1 Font 24/Smallcaps Map View 50x35 Zoom Use 4% Tactical HUD 0 Map Filters NONE Filters NONE Steam 1 RUN: a14a169a-68ca-4376-9c71-a9fd62775069